fUST/lending_fUST_20250531
["ID","MTS","AMOUNT","RATE_DAILY","PERIOD"]
[363329316,1748677843812,-3128.82,0.00017259,2]
[363329317,1748677843821,-462.03,0.00017259,2]
[363329318,1748677843831,-430.0,0.00017259,2]
[363329319,1748677843840,-430.0,0.0001726,2]
[363329320,1748677843850,-430.0,0.0001726,2]
[363329321,1748677843860,-430.0,0.0001726,2]
[363329322,1748677843870,-430.0,0.0001726,2]
[363329323,1748677843880,-430.0,0.0001726,2]
[363329324,1748677843892,-430.0,0.0001726,2]
[363329325,1748677843902,-1032.37,0.0001726,2]
[363329326,1748677843912,-972.6,0.0001726,2]
[363329327,1748677843921,-430.0,0.0001726,2]
[363329328,1748677843930,-752.9,0.0001726,2]
[363329329,1748677843939,-430.0,0.0001726,2]
[363329330,1748677843948,-430.0,0.0001726,2]
[363329331,1748677843957,-492.67,0.0001726,2]
[363329332,1748677843967,-430.0,0.0001726,2]
[363329333,1748677843978,-430.0,0.0001726,2]
[363329334,1748677843987,-430.0,0.0001726,2]
[363329335,1748677843997,-430.0,0.0001726,2]
[363329336,1748677844007,-995.13,0.0001726,2]
[363329337,1748677844017,-1581.64,0.0001726,2]
[363329338,1748677844027,-714.49,0.0001726,2]
[363329339,1748677844038,-1153.87,0.0001726,2]
[363329340,1748677844049,-430.0,0.0001726,2]
[363329341,1748677844058,-430.0,0.0001726,2]
[363329342,1748677844067,-430.0,0.0001726,2]
[363329343,1748677844076,-430.0,0.0001726,2]
[363329344,1748677844086,-482.77,0.0001726,2]
[363329345,1748677844095,-430.0,0.0001726,2]
[363329346,1748677844107,-236.07410311,0.0001726,2]
[363329347,1748677844116,-430.0,0.0001726,2]
[363329348,1748677844126,-4877.47,0.0001726,2]
[363329349,1748677844137,-430.0,0.0001726,2]
[363329350,1748677844147,-430.0,0.0001726,2]
[363329351,1748677844156,-521.38,0.0001726,2]
[363329352,1748677844166,-437.11524837,0.0001726,2]
[363329353,1748677844176,-616.06,0.0001726,2]
[363329354,1748677844185,-430.0,0.0001726,2]
[363329355,1748677844195,-852.09,0.0001726,2]
[363329356,1748677844204,-430.0,0.0001726,2]
[363329357,1748677844213,-430.0,0.0001726,2]
[363329358,1748677844223,-3128.82,0.00017533,2]
[363329359,1748677844232,-462.03,0.00017533,2]
[363329360,1748677844241,-430.0,0.00017534,2]
[363329361,1748677844251,-430.0,0.00017534,2]
[363329362,1748677844260,-430.0,0.00017534,2]
[363329363,1748677844270,-430.0,0.00017534,2]
[363329364,1748677844286,-430.0,0.00017534,2]
[363329365,1748677844296,-430.0,0.00017534,2]
[363329366,1748677844305,-1032.37,0.00017534,2]
[363329367,1748677844315,-972.6,0.00017534,2]
[363329368,1748677844325,-430.0,0.00017534,2]
[363329369,1748677844335,-752.9,0.00017534,2]
[363329370,1748677844344,-430.0,0.00017534,2]
[363329371,1748677844353,-430.0,0.00017534,2]
[363329372,1748677844363,-492.67,0.00017534,2]
[363329373,1748677844372,-430.0,0.00017534,2]
[363329374,1748677844385,-430.0,0.00017534,2]
[363329375,1748677844394,-430.0,0.00017534,2]
[363329376,1748677844403,-430.0,0.00017534,2]
[363329377,1748677844413,-995.13,0.00017534,2]
[363329378,1748677844422,-1581.64,0.00017534,2]
[363329379,1748677844432,-714.49,0.00017534,2]
[363329380,1748677844441,-1153.87,0.00017534,2]
[363329381,1748677844450,-430.0,0.00017534,2]
[363329382,1748677844460,-430.0,0.00017534,2]
[363329384,1748677844469,-430.0,0.00017534,2]
[363329385,1748677844479,-430.0,0.00017534,2]
[363329387,1748677844489,-482.77,0.00017534,2]
[363329389,1748677844501,-430.0,0.00017534,2]
[363329390,1748677844518,-430.0,0.00017534,2]
[363329391,1748677844528,-4877.47,0.00017534,2]
[363329392,1748677844537,-430.0,0.00017534,2]
[363329393,1748677844546,-430.0,0.00017534,2]
[363329394,1748677844555,-521.38,0.00017534,2]
[363329395,1748677844564,-616.06,0.00017534,2]
[363329396,1748677844574,-430.0,0.00017534,2]
[363329397,1748677844583,-852.09,0.00017534,2]
[363329398,1748677844592,-430.0,0.00017534,2]
[363329399,1748677844602,-430.0,0.00017534,2]
[363329400,1748677844611,-3128.82,0.00017807,2]
[363329401,1748677844621,-462.03,0.00017807,2]
[363329402,1748677844632,-430.0,0.00017808,2]
[363329403,1748677844642,-430.0,0.00017808,2]
[363329404,1748677844651,-430.0,0.00017808,2]
[363329405,1748677844661,-430.0,0.00017808,2]
[363329406,1748677844670,-310.12305174,0.00017808,2]
[363329407,1748677844679,-430.0,0.00017808,2]
[363329408,1748677844689,-1032.37,0.00017808,2]
[363329409,1748677844700,-972.6,0.00017808,2]
[363329410,1748677844713,-430.0,0.00017808,2]
[363329411,1748677844724,-752.9,0.00017808,2]
[363329412,1748677844733,-430.0,0.00017808,2]
[363329413,1748677844743,-430.0,0.00017808,2]
[363329414,1748677844754,-492.67,0.00017808,2]
[363329415,1748677844764,-430.0,0.00017808,2]
[363329416,1748677844774,-430.0,0.00017808,2]
[363329417,1748677844784,-430.0,0.00017808,2]
[363329418,1748677844794,-430.0,0.00017808,2]
[363329419,1748677844803,-995.13,0.00017808,2]
[363329420,1748677844814,-1581.64,0.00017808,2]
[363329422,1748677844834,-714.49,0.00017808,2]
[363329423,1748677844844,-1153.87,0.00017808,2]
[363329424,1748677844853,-430.0,0.00017808,2]
[363329425,1748677844864,-430.0,0.00017808,2]
[363329426,1748677844875,-430.0,0.00017808,2]
[363329428,1748677844886,-430.0,0.00017808,2]
[363329429,1748677844895,-482.77,0.00017808,2]
[363329430,1748677844904,-430.0,0.00017808,2]
[363329431,1748677844913,-4877.47,0.00017808,2]
[363329432,1748677844922,-430.0,0.00017808,2]
[363329433,1748677844931,-430.0,0.00017808,2]
[363329434,1748677844939,-521.38,0.00017808,2]
[363329435,1748677844948,-616.06,0.00017808,2]
[363329436,1748677844958,-430.0,0.00017808,2]
[363329437,1748677844967,-852.09,0.00017808,2]
[363329438,1748677844976,-430.0,0.00017808,2]
[363329439,1748677844985,-430.0,0.00017808,2]
[363329440,1748677844994,-504.64620244,0.00017863,2]
[363329441,1748677845003,-500.0,0.00017863,2]
[363329442,1748677845012,-500.0,0.00017863,2]
[363329443,1748677845021,-438.97817513,0.000179,2]
[363329444,1748677845030,-500.0,0.000179,2]
[363329445,1748677845039,-420.0,0.00017921,2]
[363329446,1748677845048,-162.95,0.00018,2]
[363329447,1748677845057,-500.0,0.0001805,2]
[363329448,1748677845066,-500.0,0.0001805,2]
[363329449,1748677845077,-3128.82,0.00018081,2]
[363329450,1748677845086,-462.03,0.00018081,2]
[363329451,1748677845095,-430.0,0.00018082,2]
[363329452,1748677845104,-430.0,0.00018082,2]
[363329453,1748677845113,-430.0,0.00018082,2]
[363329454,1748677845123,-430.0,0.00018082,2]
[363329455,1748677845133,-405.39,0.00018082,2]
[363329456,1748677845143,-1032.37,0.00018082,2]
[363329457,1748677845152,-972.6,0.00018082,2]
[363329458,1748677845162,-430.0,0.00018082,2]
[363329459,1748677845171,-752.9,0.00018082,2]
[363329460,1748677845180,-430.0,0.00018082,2]
[363329461,1748677845189,-430.0,0.00018082,2]
[363329462,1748677845199,-492.67,0.00018082,2]
[363329463,1748677845208,-430.0,0.00018082,2]
[363329464,1748677845217,-430.0,0.00018082,2]
[363329465,1748677845227,-193.33,0.00018082,2]
[363329466,1748677845236,-430.0,0.00018082,2]
[363329467,1748677845246,-995.13,0.00018082,2]
[363329468,1748677845255,-1581.64,0.00018082,2]
[363329469,1748677845264,-714.49,0.00018082,2]
[363329475,1748677845416,-1153.87,0.00018082,2]
[363329476,1748677845427,-430.0,0.00018082,2]
[363329477,1748677845437,-430.0,0.00018082,2]
[363329478,1748677845447,-430.0,0.00018082,2]
[363329479,1748677845456,-535.6,0.00018082,2]
[363329480,1748677845466,-482.77,0.00018082,2]
[363329481,1748677845476,-430.0,0.00018082,2]
[363329482,1748677845485,-4877.47,0.00018082,2]
[363329483,1748677845494,-430.0,0.00018082,2]
[363329484,1748677845503,-430.0,0.00018082,2]
[363329485,1748677845513,-521.38,0.00018082,2]
[363329486,1748677845522,-616.06,0.00018082,2]
[363329487,1748677845532,-430.0,0.00018082,2]
[363329488,1748677845541,-852.09,0.00018082,2]
[363329489,1748677845550,-232.75791265,0.00018082,2]
[363329490,1748677845560,-430.0,0.00018082,2]
[363329491,1748677845570,-2114.0930264,0.00018082,2]
[363329492,1748677845580,-1100.0,0.00018164,2]
[363329493,1748677845589,-587.0,0.00018284,2]
[363329494,1748677845599,-3128.82,0.00018355,2]
[363329495,1748677845609,-462.03,0.00018355,2]
[363329496,1748677845618,-430.0,0.00018356,2]
[363329497,1748677845628,-430.0,0.00018356,2]
[363329498,1748677845637,-430.0,0.00018356,2]
[363329499,1748677845647,-1032.37,0.00018356,2]
[363329500,1748677845656,-972.6,0.00018356,2]
[363329501,1748677845665,-561.53,0.00018356,2]
[363329502,1748677845674,-752.9,0.00018356,2]
[363329503,1748677845684,-430.0,0.00018356,2]
[363329504,1748677845693,-430.0,0.00018356,2]
[363329505,1748677845703,-492.67,0.00018356,2]
[363329506,1748677845715,-430.0,0.00018356,2]
[363329507,1748677845724,-563.7,0.00018356,2]
[363329508,1748677845734,-995.13,0.00018356,2]
[363329509,1748677845743,-1581.64,0.00018356,2]
[363329510,1748677845754,-714.49,0.00018356,2]
[363329511,1748677845764,-1153.87,0.00018356,2]
[363329512,1748677845773,-430.0,0.00018356,2]
[363329513,1748677845784,-430.0,0.00018356,2]
[363329514,1748677845793,-430.0,0.00018356,2]
[363329516,1748677845803,-482.77,0.00018356,2]
[363329517,1748677845812,-430.0,0.00018356,2]
[363329518,1748677845821,-4877.47,0.00018356,2]
[363329519,1748677845832,-430.0,0.00018356,2]
[363329520,1748677845841,-430.0,0.00018356,2]
[363329521,1748677845850,-521.38,0.00018356,2]
[363329522,1748677845860,-616.06,0.00018356,2]
[363329523,1748677845869,-430.0,0.00018356,2]
[363329524,1748677845879,-852.09,0.00018356,2]
[363329525,1748677845888,-430.0,0.00018356,2]
[363329526,1748677845897,-506.76224122,0.0001841,2]
[363329527,1748677845907,-1000.0,0.00018411,2]
[363329528,1748677845918,-1000.0,0.00018448,2]
[363329529,1748677845927,-633.51723044,0.00018598,2]
[363329530,1748677845938,-503.73758269,0.00018598,2]
[363329531,1748677845949,-3128.82,0.00018629,2]
[363329532,1748677845957,-462.03,0.00018629,2]
[363329533,1748677845967,-430.0,0.0001863,2]
[363329534,1748677845978,-430.0,0.0001863,2]
[363329535,1748677845987,-292.96,0.0001863,2]
[363329536,1748677845997,-1032.37,0.0001863,2]
[363329537,1748677846007,-972.6,0.0001863,2]
[363329538,1748677846017,-752.9,0.0001863,2]
[363329539,1748677846026,-430.0,0.0001863,2]
[363329540,1748677846036,-430.0,0.0001863,2]
[363329541,1748677846045,-492.67,0.0001863,2]
[363329542,1748677846055,-507.71550259,0.0001863,2]
[363329543,1748677846064,-995.13,0.0001863,2]
[363329544,1748677846073,-1581.64,0.0001863,2]
[363329545,1748677846083,-714.49,0.0001863,2]
[363329546,1748677846092,-1153.87,0.0001863,2]
[363329547,1748677846102,-430.0,0.0001863,2]
[363329548,1748677846111,-430.0,0.0001863,2]
[363329549,1748677846121,-430.0,0.0001863,2]
[363329550,1748677846131,-482.77,0.0001863,2]
[363329551,1748677846140,-250.86299075,0.0001863,2]
[363329552,1748677846150,-4877.47,0.0001863,2]
[363329553,1748677846159,-430.0,0.0001863,2]
[363329554,1748677846170,-430.0,0.0001863,2]
[363329556,1748677846180,-521.38,0.0001863,2]
[363329557,1748677846189,-616.06,0.0001863,2]
[363329559,1748677846198,-430.0,0.0001863,2]
[363329560,1748677846207,-852.09,0.0001863,2]
[363329562,1748677846217,-160.0,0.00018706,2]
[363329563,1748677846227,-12664.98044988,0.00018726,2]
[363329564,1748677846237,-160.0,0.00018726,2]
[363329565,1748677846246,-160.0,0.00018726,2]
[363329566,1748677846256,-842.5625,0.00018726,2]
[363329567,1748677846266,-423.4608169,0.00018726,2]
[363329568,1748677846275,-229.3428821,0.00018726,2]
[363329569,1748677846285,-212.77096907,0.00018726,2]
[363329570,1748677846295,-2709.72026303,0.000189,2]
[363329571,1748677846305,-3128.82,0.00018903,2]
[363329572,1748677846315,-462.03,0.00018903,2]
[363329573,1748677846325,-547.06,0.00018904,2]
[363329574,1748677846334,-430.0,0.00018904,2]
[363329575,1748677846344,-1032.37,0.00018904,2]
[363329576,1748677846354,-972.6,0.00018904,2]
[363329577,1748677846363,-752.9,0.00018904,2]
[363329579,1748677846373,-430.0,0.00018904,2]
[363329580,1748677846382,-430.0,0.00018904,2]
[363329581,1748677846391,-492.67,0.00018904,2]
[363329582,1748677846401,-995.13,0.00018904,2]
[363329583,1748677846411,-1581.64,0.00018904,2]
[363329584,1748677846420,-714.49,0.00018904,2]
[363329585,1748677846430,-1153.87,0.00018904,2]
[363329586,1748677846440,-430.0,0.00018904,2]
[363329587,1748677846450,-430.0,0.00018904,2]
[363329588,1748677846459,-430.0,0.00018904,2]
[363329589,1748677846468,-482.77,0.00018904,2]
[363329590,1748677846478,-4877.47,0.00018904,2]
[363329591,1748677846488,-430.0,0.00018904,2]
[363329592,1748677846497,-430.0,0.00018904,2]
[363329593,1748677846507,-521.38,0.00018904,2]
[363329594,1748677846516,-616.06,0.00018904,2]
[363329595,1748677846526,-430.0,0.00018904,2]
[363329596,1748677846535,-852.09,0.00018904,2]
[363329597,1748677846545,-1500.0,0.00018959,2]
[363329598,1748677846554,-500.0,0.0001896,2]
[363329599,1748677846564,-205.68099355,0.0001896,2]
[363329600,1748677846573,-624.06154288,0.00018987,2]
[363329601,1748677846583,-1005.52707264,0.00018996,2]
[363329602,1748677846593,-3128.82,0.00019177,2]
[363329603,1748677846603,-462.03,0.00019177,2]
[363329604,1748677846614,-430.0,0.00019178,2]
[363329605,1748677846625,-1032.37,0.00019178,2]
[363329606,1748677846635,-972.6,0.00019178,2]
[363329607,1748677846644,-752.9,0.00019178,2]
[363329608,1748677846654,-430.0,0.00019178,2]
[363329609,1748677846663,-430.0,0.00019178,2]
[363329611,1748677846673,-492.67,0.00019178,2]
[363329613,1748677846684,-995.13,0.00019178,2]
[363329615,1748677846695,-1581.64,0.00019178,2]
[363329616,1748677846705,-714.49,0.00019178,2]
[363329617,1748677846717,-1153.87,0.00019178,2]
[363329618,1748677846728,-430.0,0.00019178,2]
[363329619,1748677846738,-430.0,0.00019178,2]
[363329620,1748677846748,-430.0,0.00019178,2]
[363329621,1748677846759,-482.77,0.00019178,2]
[363329622,1748677846768,-4877.47,0.00019178,2]
[363329623,1748677846779,-430.0,0.00019178,2]
[363329624,1748677846789,-430.0,0.00019178,2]
[363329625,1748677846798,-521.38,0.00019178,2]
[363329626,1748677846808,-616.06,0.00019178,2]
[363329627,1748677846818,-430.0,0.00019178,2]
[363329628,1748677846827,-852.09,0.00019178,2]
[363329629,1748677846837,-541.5271829,0.00019178,2]
[363329630,1748677846846,-541.5271829,0.00019178,2]
[363329631,1748677846856,-541.5271829,0.00019178,2]
[363329632,1748677846865,-541.5271829,0.00019178,2]
[363329633,1748677846875,-541.5271829,0.00019178,2]
[363329634,1748677846884,-541.5271829,0.00019178,2]
[363329635,1748677846894,-541.5271829,0.00019178,2]
[363329636,1748677846903,-541.5271829,0.00019178,2]
[363329637,1748677846912,-541.5271829,0.00019178,2]
[363329638,1748677846922,-541.5271829,0.00019178,2]
[363329639,1748677846931,-541.5271829,0.00019178,2]
[363329640,1748677846940,-541.5271829,0.00019178,2]
[363329641,1748677846949,-541.5271829,0.00019178,2]
[363329642,1748677846958,-541.5271829,0.00019178,2]
[363329643,1748677846968,-541.5271829,0.00019178,2]
[363329644,1748677846977,-541.5271829,0.00019178,2]
[363329645,1748677846986,-541.5271829,0.00019178,2]
[363329646,1748677846995,-541.5271829,0.00019178,2]
[363329647,1748677847004,-541.5271829,0.00019178,2]
[363329648,1748677847013,-541.5271829,0.00019178,2]
[363329649,1748677847023,-541.5271829,0.00019178,2]
[363329650,1748677847032,-541.5271829,0.00019178,2]
[363329651,1748677847041,-541.5271829,0.00019178,2]
[363329652,1748677847050,-541.5271829,0.00019178,2]
[363329653,1748677847059,-541.5271829,0.00019178,2]
[363329654,1748677847068,-541.5271829,0.00019178,2]
[363329655,1748677847078,-541.5271829,0.00019178,2]
[363329656,1748677847087,-541.5271829,0.00019178,2]
[363329657,1748677847097,-541.5271829,0.00019178,2]
[363329658,1748677847106,-541.5271829,0.00019178,2]
[363329659,1748677847115,-541.5271829,0.00019178,2]
[363329660,1748677847125,-541.5271829,0.00019178,2]
[363329661,1748677847134,-541.5271829,0.00019178,2]
[363329662,1748677847143,-541.5271829,0.00019178,2]
[363329663,1748677847156,-541.5271829,0.00019178,2]
[363329664,1748677847165,-541.5271829,0.00019178,2]
[363329665,1748677847175,-541.5271829,0.00019178,2]
[363329666,1748677847185,-541.5271829,0.00019178,2]
[363329667,1748677847194,-541.5271829,0.00019178,2]
[363329668,1748677847204,-541.5271829,0.00019178,2]
[363329669,1748677847214,-541.5271829,0.00019178,2]
[363329670,1748677847223,-541.5271829,0.00019178,2]
[363329671,1748677847233,-541.5271829,0.00019178,2]
[363329672,1748677847242,-541.5271829,0.00019178,2]
[363329673,1748677847251,-541.5271829,0.00019178,2]
[363329674,1748677847259,-541.5271829,0.00019178,2]
[363329675,1748677847268,-541.5271829,0.00019178,2]
[363329676,1748677847277,-541.5271829,0.00019178,2]
[363329677,1748677847286,-541.5271829,0.00019178,2]
[363329678,1748677847295,-541.5271829,0.00019178,2]
[363329679,1748677847304,-541.5271829,0.00019178,2]
[363329680,1748677847313,-541.5271829,0.00019178,2]
[363329681,1748677847322,-541.5271829,0.00019178,2]
[363329682,1748677847331,-541.5271829,0.00019178,2]
[363329683,1748677847340,-541.5271829,0.00019178,2]
[363329684,1748677847349,-541.5271829,0.00019178,2]
[363329685,1748677847358,-541.5271829,0.00019178,2]
[363329686,1748677847367,-541.5271829,0.00019178,2]
[363329687,1748677847376,-541.5271829,0.00019178,2]
[363329688,1748677847385,-541.5271829,0.00019178,2]
[363329689,1748677847393,-541.5271829,0.00019178,2]
[363329690,1748677847402,-541.5271829,0.00019178,2]
[363329691,1748677847411,-541.5271829,0.00019178,2]
[363329692,1748677847420,-541.5271829,0.00019178,2]
[363329693,1748677847429,-286.998374,0.00019178,2]
[363329694,1748677847438,-1100.0,0.0001926,2]
[363329695,1748677847446,-173.216913,0.00019329,2]
[363329696,1748677847455,-173.216913,0.00019329,2]
[363329697,1748677847464,-1598.13938,0.00019329,2]
[363329698,1748677847473,-1598.13938,0.00019329,2]
[363329699,1748677847482,-211.725309,0.00019329,2]
[363329700,1748677847490,-161.87132,0.00019329,2]
[363329701,1748677847499,-161.87132,0.00019329,2]
[363329702,1748677847508,-151.0,0.00019329,2]
[363329703,1748677847517,-100000.0,0.00019329,2]
[363329704,1748677847526,-907.0,0.00019344,2]
[363329705,1748677847534,-907.0,0.00019371,2]
[363329706,1748677847543,-907.0,0.00019399,2]
[363329707,1748677847552,-907.0,0.00019426,2]
[363329708,1748677847561,-3128.82,0.00019451,2]
[363329709,1748677847570,-462.03,0.00019451,2]
[363329710,1748677847579,-430.0,0.00019452,2]
[363329711,1748677847588,-1032.37,0.00019452,2]
[363329712,1748677847597,-972.6,0.00019452,2]
[363329713,1748677847606,-752.9,0.00019452,2]
[363329714,1748677847615,-275.97330177,0.00019452,2]
[363329715,1748677847624,-430.0,0.00019452,2]
[363329716,1748677847633,-492.67,0.00019452,2]
[363329717,1748677847641,-995.13,0.00019452,2]
[363329718,1748677847650,-1581.64,0.00019452,2]
[363329719,1748677847659,-714.49,0.00019452,2]
[363329720,1748677847669,-1153.87,0.00019452,2]
[363329721,1748677847678,-430.0,0.00019452,2]
[363329722,1748677847687,-430.0,0.00019452,2]
[363329723,1748677847695,-430.0,0.00019452,2]
[363329724,1748677847705,-482.77,0.00019452,2]
[363329725,1748677847717,-4877.47,0.00019452,2]
[363329726,1748677847726,-430.0,0.00019452,2]
[363329727,1748677847735,-430.0,0.00019452,2]
[363329728,1748677847744,-521.38,0.00019452,2]
[363329729,1748677847755,-616.06,0.00019452,2]
[363329730,1748677847764,-430.0,0.00019452,2]
[363329731,1748677847773,-852.09,0.00019452,2]
[363329732,1748677847783,-907.0,0.00019454,2]
[363329733,1748677847793,-907.0,0.00019481,2]
[363329734,1748677847803,-162.08606629,0.00019488,2]
[363329735,1748677847812,-2000.0,0.00019507,2]
[363329736,1748677847822,-907.0,0.00019508,2]
[363329737,1748677847831,-907.0,0.00019536,2]
[363329738,1748677847841,-907.0,0.00019563,2]
[363329739,1748677847850,-176.0,0.00019586,2]
[363329740,1748677847859,-907.0,0.00019591,2]
[363329741,1748677847869,-907.0,0.00019618,2]
[363329742,1748677847879,-907.0,0.00019645,2]
[363329743,1748677847888,-907.0,0.00019673,2]
[363329744,1748677847897,-907.0,0.000197,2]
[363329745,1748677847907,-3128.82,0.00019725,2]
[363329746,1748677847916,-462.03,0.00019725,2]
[363329747,1748677847925,-382.885627,0.00019726,2]
[363329748,1748677847934,-151.0,0.00019726,2]
[363329749,1748677847943,-430.0,0.00019726,2]
[363329750,1748677847953,-1032.37,0.00019726,2]
[363329751,1748677847963,-972.6,0.00019726,2]
[363329752,1748677847972,-752.9,0.00019726,2]
[363329753,1748677847981,-430.0,0.00019726,2]
[363329754,1748677847990,-492.67,0.00019726,2]
[363329755,1748677848000,-995.13,0.00019726,2]
[363329756,1748677848009,-1581.64,0.00019726,2]
[363329757,1748677848019,-714.49,0.00019726,2]
[363329758,1748677848028,-1153.87,0.00019726,2]
[363329759,1748677848037,-430.0,0.00019726,2]
[363329760,1748677848046,-430.0,0.00019726,2]
[363329761,1748677848056,-430.0,0.00019726,2]
[363329762,1748677848065,-482.77,0.00019726,2]
[363329763,1748677848075,-4877.47,0.00019726,2]
[363329764,1748677848085,-430.0,0.00019726,2]
[363329765,1748677848095,-430.0,0.00019726,2]
[363329766,1748677848104,-521.38,0.00019726,2]
[363329767,1748677848113,-616.06,0.00019726,2]
[363329768,1748677848123,-430.0,0.00019726,2]
[363329769,1748677848132,-852.09,0.00019726,2]
[363329770,1748677848142,-907.0,0.00019728,2]
[363329771,1748677848151,-907.0,0.00019755,2]
[363329772,1748677848161,-907.0,0.00019782,2]
[363329773,1748677848170,-907.0,0.0001981,2]
[363329774,1748677848179,-907.0,0.00019837,2]
[363329775,1748677848188,-907.0,0.00019865,2]
[363329776,1748677848198,-907.0,0.00019892,2]
[363329777,1748677848207,-162.67483647,0.00019896,2]
[363329778,1748677848216,-907.0,0.00019919,2]
[363329779,1748677848226,-907.0,0.00019947,2]
[363329780,1748677848236,-810.043,0.0001995,2]
[363329781,1748677848246,-173.14713067,0.0001995,2]
[363329782,1748677848256,-915.0,0.00019974,2]
[363329783,1748677848265,-3128.82,0.00019999,2]
[363329784,1748677848275,-462.03,0.00019999,2]
[363329785,1748677848285,-430.0,0.0002,2]
[363329786,1748677848295,-1032.37,0.0002,2]
[363329787,1748677848305,-972.6,0.0002,2]
[363329788,1748677848314,-752.9,0.0002,2]
[363329789,1748677848325,-430.0,0.0002,2]
[363329790,1748677848455,-492.67,0.0002,2]
[363329791,1748677848465,-995.13,0.0002,2]
[363329792,1748677848475,-1581.64,0.0002,2]
[363329793,1748677848485,-714.49,0.0002,2]
[363329794,1748677848495,-1153.87,0.0002,2]
[363329795,1748677848505,-430.0,0.0002,2]
[363329796,1748677848515,-430.0,0.0002,2]
[363329797,1748677848524,-430.0,0.0002,2]
[363329798,1748677848534,-482.77,0.0002,2]
[363329799,1748677848544,-4877.47,0.0002,2]
[363329800,1748677848554,-430.0,0.0002,2]
[363329801,1748677848563,-430.0,0.0002,2]
[363329802,1748677848574,-521.38,0.0002,2]
[363329803,1748677848584,-616.06,0.0002,2]
[363329804,1748677848594,-430.0,0.0002,2]
[363329805,1748677848604,-852.09,0.0002,2]
[363329806,1748677848614,-823.0,0.00020006,2]
[363329807,1748677848623,-1000.0,0.00020055,2]
[363329808,1748677848634,-1788.53,0.000202,2]
[363329809,1748677848644,-430.0,0.00020273,2]
[363329810,1748677848654,-1032.37,0.00020273,2]
[363329811,1748677848664,-972.6,0.00020273,2]
[363329812,1748677848673,-752.9,0.00020273,2]
[363329813,1748677848683,-430.0,0.00020273,2]
[363329814,1748677848693,-492.67,0.00020273,2]
[363329815,1748677848703,-3128.82,0.00020273,2]
[363329816,1748677848720,-995.13,0.00020273,2]
[363329817,1748677848732,-1581.64,0.00020273,2]
[363329818,1748677848742,-714.49,0.00020273,2]
[363329819,1748677848752,-1153.87,0.00020273,2]
[363329820,1748677848763,-430.0,0.00020273,2]
[363329821,1748677848773,-462.03,0.00020273,2]
[363329822,1748677848782,-430.0,0.00020273,2]
[363329823,1748677848792,-430.0,0.00020273,2]
[363329824,1748677848802,-482.77,0.00020273,2]
[363329825,1748677848812,-4877.47,0.00020273,2]
[363329826,1748677848822,-430.0,0.00020273,2]
[363329827,1748677848831,-430.0,0.00020273,2]
[363329828,1748677848841,-521.38,0.00020273,2]
[363329829,1748677848851,-616.06,0.00020273,2]
[363329830,1748677848861,-430.0,0.00020273,2]
[363329831,1748677848871,-852.09,0.00020273,2]
[363329832,1748677848881,-166.0,0.00020274,2]
[363329833,1748677848891,-212.0,0.00020274,3]